Cogmind - Beta 15 @@@ ROGUE MODE // 2025.08.04 @ 20:40:43 Player: OoferDoofums Result: Destroyed by P-60 Hacker with Shock Rifle Performance ------------- Evolutions (3) 1500 Regions Visited (7) 1400 Robots Destroyed (41) 205 Value Destroyed (1303) 1303 Prototype IDs (1) 20 Alien Tech Used (0) 0 Bonus (504) 504 TOTAL SCORE: 4932 Bonus ------- Follower Combat Kills 527 Friendly Fire -23 Cogmind --------- Core Integrity 0/700 Matter 286/300 Energy 93/100 System Corruption 5% Temperature Cool (0) Movement Walking (125) Location -7/Factory Parts ------- > --- POWER (2) -------- Backup Power III > --- PROPULSION (5) --- Carbon-fiber Leg Improved Titanium Leg Armored Huge Wheel > --- UTILITY (3) ------ (None) > --- WEAPON (3) ------- Backup Laser III Heavy Beamcaster High-powered Shotgun > --- INVENTORY (5) ---- Damper Plating Peak State ------------ > --- POWER ------------ Backup Power III Backup Power III > --- PROPULSION ------- Carbon-fiber Leg Improved Titanium Leg Backup Propulsion III Backup Propulsion III Improved Airjet > --- UTILITY ---------- Backup Plating III Hardened Light Armor Plating Hardened Light Armor Plating > --- WEAPON ----------- Backup Laser III Heavy Beamcaster Heavy Beamcaster > --- INVENTORY -------- Light Nuclear Core Damper Plating [Rating: 48] Favorites ----------- Power Backup Power III Engine Backup Power III Power Core Light Nuclear Core Reactor Antimatter Reactor Propulsion Aluminum Leg Treads Advanced Treads Leg Aluminum Leg Wheel Armored Huge Wheel Hover Unit Backup Propulsion III Utility Hardened Light Armor Plating Device Tractor Beam Storage Large Storage Unit Protection Hardened Light Armor Plating Weapon Heavy Beamcaster Energy Gun Heavy Beamcaster Ballistic Gun Gauss Rifle Ballistic Cannon Assault Cannon Special Melee Weapon Improved Datajack Build | -11 -10 -10 -9 -8 -7 -7 -7 ------- Run | Yrd Mat Min Mat Mat Fac Was Fac Slots Evolved 6 | . . . 2 2 2 . . Power 1 | . . . . . 1 . . Propulsion 3 | . . . 2 1 . . . Utility 1 | . . . . . 1 . . Weapon 1 | . . . . 1 . . . Parts Attached 55 | 6 3 2 6 16 6 7 9 Power 10 | 1 . . 2 1 2 1 3 Engine 5 | 1 . . 2 . 1 . 1 Core 4 | . . . . 1 1 . 2 Reactor 1 | . . . . . . 1 . Propulsion 17 | 2 . . 3 6 1 1 4 Treads 4 | . . . 2 2 . . . Leg 11 | 2 . . 1 4 1 1 2 Wheel 1 | . . . . . . . 1 Hover 1 | . . . . . . . 1 Flight . | . . . . . . . . Utility 11 | 1 1 . 1 3 1 3 1 Device 7 | 1 1 . 1 2 1 1 . Storage 1 | . . . . 1 . . . Processor . | . . . . . . . . Hackware . | . . . . . . . . Protection 3 | . . . . . . 2 1 Artifact . | . . . . . . . . Weapon 17 | 2 2 2 . 6 2 2 1 Energy Gun 2 | . . . . . . 2 . Energy Cannon . | . . . . . . . . Ballistic Gun 13 | 2 2 . . 6 2 . 1 Ballistic Cannon 1 | . . 1 . . . . . Launcher . | . . . . . . . . Special Weapon . | . . . . . . . . Impact Weapon . | . . . . . . . . Slashing Weapon . | . . . . . . . . Piercing Weapon . | . . . . . . . . Special Melee Weapon 1 | . . 1 . . . . . Unidentified Prototypes 1 | . . . . . . . 1 Parts Lost 19 | . . . . 2 1 9 7 Power 6 | . . . . 1 1 1 3 Propulsion 4 | . . . . 1 . 2 1 Utility 6 | . . . . . . 3 3 Weapon 3 | . . . . . . 3 . Highest Loss Streak 8 | . . . . 1 1 8 4 To Critical Strikes . | . . . . . . . . Average Backups 3 | . 3 4 3 5 7 3 2 Power . | . . . . . 1 1 1 Propulsion . | . 1 2 . . 1 . . Utility . | . . . . 1 1 1 1 Weapon 1 | . 2 2 2 2 3 . . Tool/Special . | . . . . . . . . Unused Backups 5 | . . 1 . . . 3 1 Power . | . . . . . . . . Propulsion . | . . . . . . . . Utility 3 | . . . . . . 2 1 Weapon 2 | . . 1 . . . 1 . Tool/Special . | . . . . . . . . Average Slot Usage (%) 91 | . 92 98 93 99 99 66 89 Engine 9 | . 14 14 11 8 5 9 10 Core 2 | . . . . . 8 2 3 Treads 6 | . . . 21 15 7 1 . Leg 21 | . 28 28 22 28 30 6 17 Wheel 1 | . . . . . . . 4 Hover 4 | . . . . . . 8 9 Device 9 | . 21 26 16 15 14 3 . Storage 1 | . . . . 2 7 1 . Protection 8 | . . . . . . 12 22 Energy Gun 7 | . . . . . . 14 19 Ballistic Gun 10 | . 28 23 11 17 15 3 1 Ballistic Cannon 4 | . . 3 11 9 6 1 . Peak Build Rating 48 | 6 9 11 16 29 37 44 48 Average Rating 28 | 5 8 9 14 23 35 30 44 On Entrance 18 | . 6 9 9 16 29 37 39 Naked Turns 27 | . . . . . . 27 . Heaviest Build 57 | 10 13 14 15 39 46 57 38 Greatest Support 55 | 20 20 20 20 45 55 55 52 Greatest Overweight (x) 5 | 1 . . . 1 . 5 1 Average Overweight (x) . | . . . . . . . . Largest Inventory Capacity 15 | 5 5 5 5 15 15 15 5 Average Capacity 7 | 5 5 5 5 8 15 7 5 Most Carried 15 | 1 5 5 5 8 9 15 5 Average Carried 5 | . 4 4 3 5 7 6 4 Final Capacity 15 | 5 5 5 5 15 15 5 5 Final Carried 9 | 1 5 5 5 8 9 5 4 Class Distribution -------------------- 33% | Mutant 27% | Tank 18% | Gunner 18% | Scavenger-Gunner Dominant Class ---------------- Mutant | -10/Materials Mutant | -10/Mines Mutant | -9/Materials Gunner | -8/Materials Scavenger-Gunner | -7/Factory Tank | -7/Waste Tank | -7/Factory Resources | -11 -10 -10 -9 -8 -7 -7 -7 ----------- Run | Yrd Mat Min Mat Mat Fac Was Fac Matter Collected 1901 | 368 . . 309 651 185 272 116 Remotely 1245 | . . . 309 577 185 174 . Salvage Created 1639 | 216 . . 253 498 166 339 167 Parts 83 | 15 . . 21 28 10 4 5 Haulers Intercepted . | . . . . . . . . Recyclers Shooed 2 | . . . 1 1 . . . Parts Field Recycled . | . . . . . . . . Retrieved Matter . | . . . . . . . . Parts Self-Destructed . | . . . . . . . . Prevented . | . . . . . . . . Kills | -11 -10 -10 -9 -8 -7 -7 -7 ------- Run | Yrd Mat Min Mat Mat Fac Was Fac Combat Hostiles Destroyed 30 | . . . 7 13 4 1 5 Guns 22 | . . . 5 8 3 1 5 Cannons 8 | . . . 2 5 1 . . Classes Destroyed 12 | 3 . . 4 2 2 1 . Worker 3 | 2 . . . . 1 . . Builder 1 | . . . 1 . . . . Tunneler 4 | 4 . . . . . . . Recycler 2 | 1 . . . 1 . . . Watcher 1 | . . . . 1 . . . Swarmer 6 | . . . . 3 . . 3 Grunt 13 | . . . 5 6 2 . . Brawler 1 | . . . 1 . . . . Sentry 6 | . . . 1 4 . . 1 Hunter 1 | . . . . . 1 . . Programmer 2 | . . . . . 1 . 1 Compactor 1 | . . . . . . 1 . Best Kill Streak 5 | 2 . . 5 3 3 1 2 Combat Bots Only 5 | . . . 5 3 3 1 2 Max Kills in Single Turn 2 | 1 . . 1 1 2 1 1 Gunslinging . | . . . . . . . . Exploded . | . . . . . . . . Melee . | . . . . . . . . Uniques/NPCs Destroyed . | . . . . . . . . Combat | -11 -10 -10 -9 -8 -7 -7 -7 -------- Run | Yrd Mat Min Mat Mat Fac Was Fac Hostile Shots Fired 426 | . . 12 28 81 27 8 270 Missed 171 | . . 5 5 22 9 1 129 Hits 255 | . . 7 23 59 18 7 141 Melee 7 | . . . . . . 7 . Projectile 248 | . . 7 23 59 18 . 141 Critical Strikes 11 | . . . 1 5 . 3 2 Part Disruptions 1 | . . . . . . . 1 Damage Taken 3682 | . . 51 283 866 391 276 1815 Core 792 | . . 21 13 45 23 215 475 Absorbed by Shields . | . . . . . . . . Regen/Repaired (Parts) 300 | . . . . . 138 . 162 Core Remaining (%) 94 | 100 . 91 96 91 . . . Volleys Fired 111 | 18 . . 21 40 12 6 14 Largest 3 | 2 . . 2 3 3 3 3 Hottest 202 | 40 . . 60 93 93 93 202 Shots Fired 279 | 36 . . 42 120 36 16 29 Gun 200 | 36 . . 21 80 24 10 29 Cannon 79 | . . . 21 40 12 6 . Launcher . | . . . . . . . . Special . | . . . . . . . . Kinetic 255 | 36 . . 42 120 36 16 5 Thermal 24 | . . . . . . . 24 Explosive . | . . . . . . . . Electromagnetic . | . . . . . . . . Robot Hit Streak 16 | 4 . . 16 13 7 4 3 Robot Miss Streak 15 | 3 . . 2 15 2 3 5 Penetration Max . | . . . . . . . . Secondary Targets . | . . . . . . . . Shots Hit Robots 177 | 21 . . 30 78 24 9 15 Core Hits 86 | 8 . . 11 48 9 3 7 Critical Kills 1 | . . . . . . 1 . Critical Parts Destroyed . | . . . . . . . . Critical Strikes 5 | . . . 1 3 . 1 . Destroy 1 | . . . . . . 1 . Blast 4 | . . . 1 3 . . . Melee Attacks . | . . . . . . . . Impact . | . . . . . . . . Slashing . | . . . . . . . . Piercing . | . . . . . . . . Sneak Attacks . | . . . . . . . . Combat Hostiles . | . . . . . . . . Follow-up Attacks . | . . . . . . . . Damage Inflicted 3350 | 280 . . 575 1402 472 247 374 Guns 2281 | 280 . . 246 935 317 149 354 Cannons 1049 | . . . 329 467 155 98 . Explosions . | . . . . . . . . Melee . | . . . . . . . . Ramming 20 | . . . . . . . 20 Kinetic 3069 | 280 . . 575 1402 472 247 93 Thermal 261 | . . . . . . . 261 Explosive . | . . . . . . . . Electromagnetic . | . . . . . . . . Impact . | . . . . . . . . Slashing . | . . . . . . . . Piercing . | . . . . . . . . Highest Corruption 5 | . . . . . . . 5 Average Corruption 2 | . . . . . . . 2 Corruption Purged . | . . . . . . . . Corruption Blocked . | . . . . . . . . Overload Shots . | . . . . . . . . Overflow Damage . | . . . . . . . . Projectiles . | . . . . . . . . Explosions . | . . . . . . . . Melee . | . . . . . . . . Knockbacks 12 | . . . 1 8 2 . 1 Impact 1 | . . . . . . . 1 Kinetic 9 | . . . 1 6 2 . . Secondary 2 | . . . . 2 . . . Self-Inflicted Damage . | . . . . . . . . Shots . | . . . . . . . . Rammed . | . . . . . . . . Targets Rammed 1 | . . . . . . . 1 Kicked 1 | . . . . . . . 1 Crushed . | . . . . . . . . Highest Temperature 621 | . . . 20 18 21 . 621 Average Temperature 176 | . . . 8 10 6 . 195 Received Heat Transfer 777 | . . . 132 441 63 . 141 Effects 16 | . . . . . . . 16 Shutdowns 7 | . . . . . . . 7 Energy Bleed 2 | . . . . . . . 2 Short Circuit 2 | . . . . . . . 2 Damage (minor) 1 | . . . . . . . 1 Damage (major) 2 | . . . . . . . 2 Damage (core) 2 | . . . . . . . 2 Siege Activations . | . . . . . . . . Martial Activations . | . . . . . . . . Shielding Activations . | . . . . . . . . Robots Disrupted . | . . . . . . . . Combat Hostiles . | . . . . . . . . Robots Corrupted . | . . . . . . . . Combat Hostiles . | . . . . . . . . Parts Fried . | . . . . . . . . Impact Corruptions . | . . . . . . . . Robots Melted . | . . . . . . . . Combat Hostiles . | . . . . . . . . Parts Melted 1 | . . . . . . . 1 Heat Transferred 444 | . . . . . . . 444 Parts Sabotaged . | . . . . . . . . Parts Stolen . | . . . . . . . . Parts Stripped . | . . . . . . . . Power Chain Reactions . | . . . . . . . . Alert | -11 -10 -10 -9 -8 -7 -7 -7 ------- Run | Yrd Mat Min Mat Mat Fac Was Fac Maximum Alert Level 1 | . . . . . . . 1 Low Security (%) 89 | 100 100 100 100 100 100 100 64 Level 1 10 | . . . . . . . 35 Level 2 . | . . . . . . . . Level 3 . | . . . . . . . . Level 4 . | . . . . . . . . Level 5 . | . . . . . . . . High Security . | . . . . . . . . Max Security . | . . . . . . . . Peak Influence 312 | 5 . . 153 153 66 19 312 Initial 55 | . . . . 55 39 17 . Average 69 | 1 . . 48 90 19 3 148 Influence Increases 1631 | 35 . . 224 383 146 58 785 Destroy 0b10 Robot/C 880 | . . . 140 260 80 . 400 Destroy 0b10 Robot/NC 70 | 35 . . 5 10 5 . 15 Destroy Leader 234 | . . . 30 72 20 . 112 Allied During Kill 160 | . . . . . . . 160 Successful Hack 40 | . . . . . 40 . . Disable Machine 60 | . . . . . . . 60 Destroy Structure 97 | . . . 4 11 1 58 23 Lose Combat Pursuer 90 | . . . 45 30 . . 15 Influence Decreases 1492 | 35 . . 91 427 185 107 647 Entered New Map 162 | . . . . 78 50 33 1 Time Decay 1050 | 35 . . 91 329 125 74 396 Lost Part 100 | . . . . 20 10 . 70 Lost Ally 180 | . . . . . . . 180 Squads Dispatched 12 | . . . 1 3 3 . 5 Investigation 3 | . . . 1 . 2 . . Extermination 3 | . . . . . 1 . 2 Reinforcement 2 | . . . . 2 . . . Assault . | . . . . . . . . Garrison 4 | . . . . 1 . . 3 Intercept . | . . . . . . . . Searches Triggered . | . . . . . . . . Construction Impeded . | . . . . . . . . Haulers Reinforced . | . . . . . . . . Active Scanning Responses . | . . . . . . . . Cargo Convoy Interrupts . | . . . . . . . . Stealth | -11 -10 -10 -9 -8 -7 -7 -7 --------- Run | Yrd Mat Min Mat Mat Fac Was Fac Distress Signals 3 | . . . . 2 . . 1 Communications Jammed . | . . . . . . . . Distress Signals . | . . . . . . . . Times Spotted 71 | . . 3 12 23 5 6 22 Peak Tracking Total 9 | . . 3 4 9 2 4 6 Tactical Retreats 6 | . . . 2 2 . 1 1 Traps | -11 -10 -10 -9 -8 -7 -7 -7 ------- Run | Yrd Mat Min Mat Mat Fac Was Fac Traps Triggered 3 | . . 1 . 1 1 . . Indirectly . | . . . . . . . . Trap Hack Attempts 3 | . . 3 . . . . . Triggered . | . . . . . . . . Disarmed . | . . . . . . . . Reprogrammed . | . . . . . . . . Reused . | . . . . . . . . Traps Extracted . | . . . . . . . . Installed . | . . . . . . . . Triggered . | . . . . . . . . Machines | -11 -10 -10 -9 -8 -7 -7 -7 ---------- Run | Yrd Mat Min Mat Mat Fac Was Fac Machines Disabled 4 | . . . . . . . 4 Max in Single Turn . | . . . . . . . . Machines Repaired . | . . . . . . . . Machines Dismantled . | . . . . . . . . Machines Sabotaged . | . . . . . . . . Overloaded Fab Kills . | . . . . . . . . Hacking | -11 -10 -10 -9 -8 -7 -7 -7 --------- Run | Yrd Mat Min Mat Mat Fac Was Fac Machines Accessed 5 | . 1 1 . . 3 . . Terminals 2 | . 1 . . . 1 . . Fabricators 1 | . . . . . 1 . . Repair Stations 1 | . . . . . 1 . . Recycling Units . | . . . . . . . . Scanalyzers . | . . . . . . . . Garrison Access . | . . . . . . . . Total Hacks 10 | . 1 1 . . 8 . . Successful 5 | . . 1 . . 4 . . Failed 5 | . 1 . . . 4 . . Catastrophic 2 | . 1 . . . 1 . . Database Lockouts . | . . . . . . . . Manual 1 | . 1 . . . . . . Terminals 3 | . 1 . . . 2 . . Fabricators 3 | . . . . . 3 . . Repair Stations 3 | . . . . . 3 . . Recycling Units . | . . . . . . . . Scanalyzers . | . . . . . . . . Garrison Access . | . . . . . . . . Terminal Hacks 3 | . . 1 . . 2 . . Record 1 | . . . . . 1 . . Open Door 1 | . . 1 . . . . . Terminal Index 1 | . . . . . 1 . . Fabricator Hacks . | . . . . . . . . Repair Station Hacks 2 | . . . . . 2 . . Scan Component 1 | . . . . . 1 . . Repair 1 | . . . . . 1 . . Recycling Unit Hacks . | . . . . . . . . Scanalyzer . | . . . . . . . . Garrison Access Hacks . | . . . . . . . . Unauthorized Hacks . | . . . . . . . . Terminals . | . . . . . . . . Fabricators . | . . . . . . . . Repair Stations . | . . . . . . . . Recycling Units . | . . . . . . . . Scanalyzers . | . . . . . . . . Garrison Access . | . . . . . . . . Data Cores Recovered 1 | . . . . . . . 1 Used . | . . . . . . . . Hacking Detections 4 | . 1 . . . 3 . . Full Trace Events 2 | . . . . . 2 . . Feedback Events . | . . . . . . . . Feedback Blocked . | . . . . . . . . Robot Schematics Acquired . | . . . . . . . . Robots Built . | . . . . . . . . Authchips . | . . . . . . . . Time . | . . . . . . . . Total Robot Build Rating . | . . . . . . . . Part Schematics Acquired . | . . . . . . . . Parts Built . | . . . . . . . . Authchips . | . . . . . . . . Time . | . . . . . . . . Total Part Build Rating . | . . . . . . . . Parts Repaired 1 | . . . . . 1 . . Time 19 | . . . . . 19 . . Parts Recycled . | . . . . . . . . Recycled Matter . | . . . . . . . . Retrieved Matter . | . . . . . . . . Retrieved Components . | . . . . . . . . Parts Scanalyzed . | . . . . . . . . Part Schematics Acquired . | . . . . . . . . Parts Damaged . | . . . . . . . . Bothacking | -11 -10 -10 -9 -8 -7 -7 -7 ------------ Run | Yrd Mat Min Mat Mat Fac Was Fac Used RIF Installer . | . . . . . . . . Robots Hacked . | . . . . . . . . Non-combat . | . . . . . . . . Combat . | . . . . . . . . Robot Hacks Applied . | . . . . . . . . Relay Couplers Released . | . . . . . . . . Fabnet Peak Effective % . | . . . . . . . . Robots Rewired . | . . . . . . . . Allies Hacked . | . . . . . . . . Hacks Repelled . | . . . . . . . . Allies | -11 -10 -10 -9 -8 -7 -7 -7 -------- Run | Yrd Mat Min Mat Mat Fac Was Fac Total Allies 18 | . . . . . . 18 . Largest Group 18 | . . . . . . 18 11 Highest-Rated Group 444 | . . . . . . 444 327 Highest-Rated Ally 35 | . . . . . . 35 35 Total Orders . | . . . . . . . . Ally Attacks 216 | . . . . . . 100 116 Total Damage 5443 | . . . . . . 3656 1787 Kills 29 | . . . . . . 11 18 Allies Corrupted . | . . . . . . . . Allies Melted . | . . . . . . . . Intel | -11 -10 -10 -9 -8 -7 -7 -7 ------- Run | Yrd Mat Min Mat Mat Fac Was Fac Active Infowar (turns) 453 | 203 181 69 . . . . . Seismic 453 | 203 181 69 . . . . . Robot Analysis Total . | . . . . . . . . Derelict Logs Recovered . | . . . . . . . . Drone Launches . | . . . . . . . . Drone Recoveries . | . . . . . . . . Exploration | -11 -10 -10 -9 -8 -7 -7 -7 ------------- Run | Yrd Mat Min Mat Mat Fac Was Fac Turns Passed 3480 | 299 181 84 273 746 480 405 1012 Spaces Moved 2200 | 126 144 57 161 409 308 321 674 Core 127 | 7 . . . . . 120 . Treads 2 | . . . . . . 2 . Legs 1807 | 119 144 57 161 409 308 43 566 Wheels . | . . . . . . . . Hover 264 | . . . . . . 156 108 Flight . | . . . . . . . . Fastest Speed 50 | 50 120 120 120 120 120 50 125 Average Speed 126 | 117 120 120 120 124 121 115 139 Slowest Speed 470 | 120 120 120 120 190 122 470 200 Overloaded Moves . | . . . . . . . . Propulsion Burnouts . | . . . . . . . . Robots Hopped . | . . . . . . . . Potential Cave-ins . | . . . . . . . . Cave-ins Triggered . | . . . . . . . . Exploration Rate (%) 28 | 7 25 20 18 29 10 91 31 Regions Visited 7 Branch Regions 1 Pre-discovered Areas . | . . . . . . . . Known Exits Taken . | . . . . . . . . Unknown Exits Taken 5 | 1 1 1 1 1 . . . Scrap Searched . | . . . . . . . . Spaces Dug 1 | . . . . 1 . . . Terrain Destroyed 12 | . . . 5 6 . 1 . Melee . | . . . . . . . . Projectile 12 | . . . 5 6 . 1 . AOE . | . . . . . . . . Terrain Rammed . | . . . . . . . . Walls Destroyed . | . . . . . . . . Machines Disabled . | . . . . . . . . Actions | -11 -10 -10 -9 -8 -7 -7 -7 --------- Run | Yrd Mat Min Mat Mat Fac Was Fac Total 2675 | 238 150 72 203 565 384 340 723 Wait 257 | 88 2 7 13 74 55 1 17 Move 2194 | 125 143 56 160 408 308 320 674 Hop . | . . . . . . . . Pick Up 16 | 1 2 . 1 8 2 2 . Fast Attach 26 | 6 1 2 1 2 2 6 6 Attach 12 | . . . 2 4 2 3 1 Detach 1 | . . 1 . . . . . Swap 27 | . 2 1 3 14 3 1 3 Drop 27 | . . 2 2 15 . 1 7 Fire 111 | 18 . . 21 40 12 6 14 Melee . | . . . . . . . . Ram . | . . . . . . . . Kick 1 | . . . . . . . 1 Crush . | . . . . . . . . Escape Stasis . | . . . . . . . . Rewire . | . . . . . . . . Trap 3 | . . 3 . . . . . Miscellaneous . | . . . . . . . . Route ------- -11/Scrapyard -10/Materials -10/Mines -9/Materials -8/Materials -7/Factory -7/Waste -7/Factory History --------- Turn | Location | Event 12 | -11/Scrapyard | Discovered new exit (range 15) 300 | -11/Scrapyard | Entered Materials 301 | -10/Materials | Build established: Mutant 419 | -10/Materials | Discovered new exit (range 7) 481 | -10/Materials | Entered Mines 484 | -10/Mines | Discovered new exit (range 15) 521 | -10/Mines | Met a Derelict who couldn't figure out how to use a Trap Extractor 565 | -10/Mines | Entered Materials 565 | -9/Materials | Evolved 2 slots: Propulsion x2 811 | -9/Materials | Discovered new exit (range 16) 838 | -9/Materials | Entered another Materials area 838 | -8/Materials | Evolved 2 slots: Propulsion x1, Weapon x1 1015 | -8/Materials | Garrison activated, responded to threat 1431 | -8/Materials | Build established: Gunner 1574 | -8/Materials | Discovered new exit (range 8) 1584 | -8/Materials | Entered Factory 1584 | -7/Factory | Evolved 2 slots: Power x1, Utility x1 1635 | -7/Factory | Repaired Assault Cannon 1937 | -7/Factory | Build established: Scavenger-Gunner 2064 | -7/Factory | Sucked down chute 2064 | -7/Factory | Entered Waste 2093 | -7/Waste | Spotted C-40 Crusher 2107 | -7/Waste | Destroyed C-40 Crusher 2116 | -7/Waste | Spotted C-40 Crusher 2118 | -7/Waste | Found Damper Plating 2127 | -7/Waste | Spotted C-40 Crusher 2133 | -7/Waste | Crushed by Compactor (1 part destroyed, 2 dropped) 2138 | -7/Waste | Crushed by Compactor (1 part destroyed, 1 dropped) 2141 | -7/Waste | Crushed by Compactor (1 part destroyed, 1 dropped) 2144 | -7/Waste | Crushed by Compactor (1 part destroyed, 1 dropped) 2147 | -7/Waste | Crushed by Compactor (1 part destroyed, 1 dropped) 2152 | -7/Waste | Crushed by Compactor (1 part destroyed, 1 dropped) 2155 | -7/Waste | Spotted C-40 Crusher 2159 | -7/Waste | Spotted C-40 Crusher 2183 | -7/Waste | Lost 8 parts (1p2n2u3w) 2184 | -7/Waste | Crushed by Compactor (1 part destroyed) 2196 | -7/Waste | Spotted C-40 Crusher 2204 | -7/Waste | Warlord forces began an assault 2308 | -7/Waste | Allies destroyed C-40 Crusher 2340 | -7/Waste | Allies destroyed C-40 Crusher 2363 | -7/Waste | Discovered new exit (range 13) 2370 | -7/Waste | Lost 6 allies 2399 | -7/Waste | Allies destroyed C-40 Crusher 2469 | -7/Waste | Entered Factory 2469 | -7/Factory | Accompanied by 11 allies 2546 | -7/Factory | Build established: Tank 2627 | -7/Factory | Lost 5 allies 2998 | -7/Factory | Core integrity fell below 50% 3082 | -7/Factory | Core integrity fell below 20% 3481 | -7/Factory | Destroyed by P-60 Hacker with Shock Rifle Last Messages --------------- Acquired Hpw. Shotgun. S-27 Virus destroyed. Acquired 14 matter. Acquired Lgt. Nuclear Core. Acquired 1 matter. Acquired 21 matter. Kicked T-07 Excavator out of the way. T-07 Excavator knocked back. W-25 Informer sends out distress signal. K-01 Serf destroyed. R-06 Scavenger collects Wheel. R-06 Scavenger collects Med. Matter Pod. K-01 Serf collects debris. Titanium Leg destroyed. Hrd. Medium Armor Plating destroyed. Door malfunctions. U-05 Engineer repairs door. Lgt. Nuclear Core destroyed. Hrd. Light Armor Plating destroyed. Lgt. Nuclear Core destroyed. Map ----- +----------------------------------------------------+ | | | | | | | | | | | | | | | | | | | | | | | | | | | | | | | | | | | | | | | | | | | | | | | ??????????????????###############????????????????? | | ??????????????????# #????????????????? | | ??????????????????# p@ #????????????????? | | ??????????????????# """ """ """ #????????????????? | | ??????????????????# """ """ """ #????????????????? | | ??????????????????# """ """ """ #????????????????? | | ??????????????????# #????????????????? | | ??????????????????# """ """ """ #????????????????? | | ??????????????????# """ """ """ #????????????????? | | ??????????????????# """Y""" """ #????????????????? | | ??????????????????# Y #????????????????? | | ??????????????????# #????????????????? | | ??????????????????#####+#+#########?#######??????? | | ??????????????????????# +??????? | | ??????????????????????# ######### #??????? | | ??????????????????????# / """ # #??????? | | ??????????????????????# # ""F"" # +??????? | | ??????????????????? # "" "" # #??????? | | ????????????????# # # #??????? | | ????????????????# !! """ # # #??????? | | ????????????????# ! """ # """ # #??????? | | ????????????????# """ # """ # #??????? | | ????????????????# # """ + #??????? | | ????????????????# + # #??????? | | ????????????????# # / # #??????? | | ????????????????# ?" # # #??????? | | ????????????????# ?" ######### #??????? | +----------------------------------------------------+ Best States ------------- Heat Dissipation 48 Energy Generation 31 Energy Capacity 375 Matter Stores 300 Matter Capacity 300 Sight Range 16 Terrain Scan Density 10 Base Temperature (-) 100 Armor Coverage 525 Evasion (%) 55 Recoil Reduction 1 Item Schematics ----------------- None Robot Schematics ------------------ None Fabricated ------------ Nothing Repaired ---------- Assault Cannon | 8% | -7/Factory Alien Tech Used ----------------- None Achievements -------------- None Challenges ------------ None Game ------ Seed MediumVisualTube Manual? 0 Play Time 00:40:18 Cumulative 31.0 hours Start 2025.08.04 @ 19:47:28 End 2025.08.04 @ 20:40:43 Sessions 1 Manual Loads 0 Difficulty Rogue Special Mode None Game No. 58 Rogue 58 Adventurer 0 Explorer 0 Win Type - Total 0 Types 0/0/0/0/0/0/0/0/0/0 Lore% 24 Gallery% 25 Achievement% 22 Wizard Run 0 Options --------- Layout 1 ASCII 0 Keyboard 1 Movement Mouse Keybinds 0 Fullscreen 1 Font 24/Smallcaps Map View 50x35 Zoom Use 0% Tactical HUD 0 Map Filters NONE Filters NONE Steam 1 RUN: 2a012526-e027-4350-8305-9b0e526203d6